bitfinex/quotes_BTCUSD_20240613
["timestamp","ask_amount","ask_price","bid_price","bid_amount"]
[1718237109349,0.16431993,68198.0,68195.0,0.05]
[1718237114772,0.00676386,68197.0,68195.0,0.05]
[1718237114997,0.15108379,68197.0,68195.0,0.05]
[1718237116039,0.16508379,68197.0,68195.0,0.05]
[1718237117089,0.17108379,68197.0,68195.0,0.05]
[1718237117724,0.17108379,68197.0,68196.0,0.1]
[1718237118140,0.02676386,68197.0,68195.0,0.05]
[1718237118762,0.01276386,68197.0,68195.0,0.05]
[1718237119179,0.02676386,68197.0,68195.0,0.05]
[1718237119613,0.01276386,68197.0,68194.0,0.1272]
[1718237119819,0.01276386,68197.0,68195.0,0.05]
[1718237120024,0.02076386,68197.0,68195.0,0.05]
[1718237120462,0.02776386,68197.0,68195.0,0.05]
[1718237120671,0.02076386,68197.0,68195.0,0.05]
[1718237120879,0.02576386,68197.0,68195.0,0.05]
[1718237121325,0.00676386,68197.0,68195.0,0.05]
[1718237121532,0.01276386,68197.0,68195.0,0.05]
[1718237121743,0.02,68197.0,68195.0,0.05]
[1718237122166,0.00667594,68196.0,68195.0,0.05]
[1718237122803,0.02,68197.0,68195.0,0.05]
[1718237123023,0.00667685,68196.0,68195.0,0.05]
[1718237123672,0.006,68196.0,68195.0,0.05]
[1718237124571,0.02,68196.0,68195.0,0.05]
[1718237124994,0.02667456,68196.0,68195.0,0.05]
[1718237126498,0.02,68196.0,68195.0,0.05]
[1718237130841,0.02,68196.0,68194.0,0.1272]
[1718237131049,0.02,68196.0,68195.0,0.05]
[1718237131450,0.02,68196.0,68195.0,0.050946]
[1718237131673,0.006,68196.0,68195.0,0.050946]
[1718237132099,0.02,68196.0,68195.0,0.050946]
[1718237132660,0.006,68196.0,68195.0,0.050946]
[1718237132861,0.02,68196.0,68195.0,0.050946]
[1718237135594,0.02,68196.0,68195.0,0.220946]
[1718237135816,0.02,68196.0,68195.0,0.449346]
[1718237140582,0.02,68196.0,68195.0,0.100946]
[1718237141045,0.03776357,68196.0,68195.0,0.100946]
[1718237141512,0.03776357,68196.0,68195.0,0.000946]
[1718237141942,0.03776357,68196.0,68195.0,0.050946]
[1718237144550,0.10796357,68196.0,68195.0,0.050946]
[1718237146070,0.03776357,68196.0,68195.0,0.050946]
[1718237146460,0.03776357,68196.0,68195.0,0.000946]
[1718237147994,0.03576357,68196.0,68195.0,0.000946]
[1718237153530,0.10304238,68196.0,68195.0,0.000946]
[1718237157575,0.21844662,68196.0,68195.0,0.000946]
[1718237160860,0.52506655,68196.0,68195.0,0.000946]
[1718237161284,0.56903594,68196.0,68195.0,0.000946]
[1718237161602,0.65363201,68196.0,68195.0,0.000946]
[1718237161952,0.76350082,68196.0,68195.0,0.000946]
[1718237162186,0.66780129,68196.0,68195.0,0.000946]
[1718237162392,0.57993301,68196.0,68195.0,0.000946]
[1718237162779,0.23202877,68196.0,68195.0,0.000946]
[1718237163165,0.21402877,68196.0,68195.0,0.000946]
[1718237163376,0.17316231,68196.0,68195.0,0.000946]
[1718237163569,0.17293024,68196.0,68195.0,0.000946]
[1718237163783,0.17379024,68196.0,68195.0,0.000946]
[1718237163990,0.24063239,68196.0,68195.0,0.000946]
[1718237164404,0.22663239,68196.0,68195.0,0.000946]
[1718237164822,0.24063239,68196.0,68195.0,0.000946]
[1718237165288,0.48003239,68196.0,68195.0,0.000946]
[1718237165521,0.48003239,68196.0,68188.0,0.000946]
[1718237165522,0.2394,68190.0,68188.0,0.000946]
[1718237165726,0.2394,68190.0,68177.0,0.00086356]
[1718237165727,0.2394,68188.0,68177.0,0.00086356]
[1718237165964,0.0702,68179.0,68177.0,0.00086356]
[1718237166167,0.75382486,68179.0,68177.0,0.00086356]
[1718237166379,0.79945295,68179.0,68177.0,0.00086356]
[1718237167232,0.7774748,68179.0,68177.0,0.00086356]
[1718237167437,0.8747718,68179.0,68177.0,0.00086356]
[1718237168081,0.84490059,68179.0,68177.0,0.00086356]
[1718237168714,0.88874826,68179.0,68177.0,0.00086356]
[1718237168961,0.90274826,68179.0,68177.0,0.00086356]
[1718237169177,1.00274826,68179.0,68177.0,0.00086356]
[1718237169393,0.94490059,68179.0,68177.0,0.00086356]
[1718237169844,0.95890059,68179.0,68177.0,0.00086356]
[1718237170052,0.95464436,68179.0,68177.0,0.00086356]
[1718237173792,0.93736554,68179.0,68177.0,0.00086356]
[1718237174869,0.74904885,68179.0,68177.0,0.00086356]
[1718237175289,0.93638516,68179.0,68177.0,0.00086356]
[1718237175495,0.74904885,68179.0,68177.0,0.00086356]
[1718237175715,0.76648675,68179.0,68177.0,0.00086356]
[1718237176390,0.94982287,68179.0,68177.0,0.00086356]
[1718237176608,0.94982287,68179.0,68167.0,0.000946]
[1718237176610,0.2317,68177.0,68167.0,0.000946]
[1718237176822,0.55791779,68178.0,68167.0,0.000946]
[1718237176823,0.44621993,68168.0,68167.0,0.000946]
[1718237177048,0.54462057,68168.0,68167.0,0.000946]
[1718237177277,0.55506567,68168.0,68167.0,0.000946]
[1718237179710,0.65506567,68168.0,68167.0,0.000946]
[1718237179915,0.68306567,68168.0,68167.0,0.000946]
[1718237181196,0.68306567,68168.0,68161.0,0.009438]
[1718237181451,0.0702,68162.0,68161.0,0.009438]
[1718237181669,0.21451993,68162.0,68161.0,0.009438]
[1718237182096,0.22496503,68162.0,68161.0,0.009438]
[1718237183599,0.23896503,68162.0,68161.0,0.009438]
[1718237184492,0.25296503,68162.0,68161.0,0.009438]
[1718237184704,0.29509219,68162.0,68161.0,0.009438]
[1718237190461,0.22489219,68162.0,68161.0,0.009438]
[1718237190683,0.29509219,68162.0,68161.0,0.009438]
[1718237192241,0.37318152,68162.0,68161.0,0.009438]
[1718237193798,0.51630492,68162.0,68161.0,0.009438]
[1718237195284,0.5181021,68162.0,68161.0,0.009438]
[1718237204288,0.4479021,68162.0,68161.0,0.009438]
[1718237204490,0.5181021,68162.0,68161.0,0.009438]
[1718237206339,0.53550622,68162.0,68161.0,0.009438]
[1718237209323,0.46530622,68162.0,68161.0,0.009438]
[1718237209528,0.53550622,68162.0,68161.0,0.009438]
[1718237210287,0.60921635,68162.0,68161.0,0.009438]
[1718237212515,0.59181223,68162.0,68161.0,0.009438]
[1718237214253,0.63551348,68162.0,68161.0,0.009438]
[1718237214734,0.63792387,68162.0,68161.0,0.009438]
[1718237214962,0.5432539,68162.0,68161.0,0.009438]
[1718237215177,0.42561744,68162.0,68161.0,0.257538]
[1718237215396,0.28069686,68162.0,68161.0,0.257538]
[1718237216276,0.17597712,68162.0,68161.0,0.257538]
[1718237216703,0.18898836,68162.0,68161.0,0.257538]
[1718237216925,0.2698011,68162.0,68161.0,0.257538]
[1718237217384,0.18898836,68162.0,68161.0,0.257538]
[1718237217595,0.25581316,68162.0,68161.0,0.257538]
[1718237217801,0.22158968,68162.0,68161.0,0.257538]
[1718237218008,0.23458968,68162.0,68161.0,0.257538]
[1718237218290,0.22058968,68162.0,68161.0,0.257538]
[1718237218521,0.23458968,68162.0,68161.0,0.257538]
[1718237220187,0.23458968,68162.0,68161.0,0.377538]
[1718237220394,0.20198836,68162.0,68161.0,0.377538]
[1718237220601,0.20198836,68162.0,68161.0,0.257538]
[1718237223408,0.18433117,68162.0,68161.0,0.257538]
[1718237224831,0.04001124,68162.0,68161.0,0.257538]
[1718237225046,0.04001124,68162.0,68161.0,0.427538]
[1718237225472,0.027,68162.0,68161.0,0.427538]
[1718237255410,0.027,68162.0,68161.0,0.4883991]
[1718237255613,0.027,68162.0,68161.0,0.427538]
[1718237260244,0.04003748,68162.0,68161.0,0.427538]
[1718237260651,0.04003748,68162.0,68161.0,0.307538]
[1718237260853,0.04003748,68162.0,68161.0,0.427538]
[1718237263402,0.04003748,68162.0,68161.0,0.307538]
[1718237264790,0.04003748,68162.0,68161.0,0.427538]
[1718237266032,0.04003748,68162.0,68161.0,0.307538]
[1718237266241,0.04003748,68162.0,68161.0,0.427538]
[1718237273777,0.04003748,68162.0,68161.0,0.307538]
[1718237274201,0.19013748,68162.0,68161.0,0.009438]
[1718237274353,0.50455716,68162.0,68161.0,0.009438]
[1718237274558,0.74609396,68162.0,68161.0,0.009438]
[1718237274762,0.77433244,68162.0,68161.0,0.009438]
[1718237275006,0.8620551,68162.0,68161.0,0.009438]
[1718237275214,0.77433244,68162.0,68161.0,0.009438]
[1718237275632,0.76133244,68162.0,68161.0,0.009438]
[1718237275874,0.84928018,68162.0,68161.0,0.009438]
[1718237276086,0.86328018,68162.0,68161.0,0.009438]
[1718237276281,0.77462064,68162.0,68161.0,0.009438]
[1718237276552,0.76062064,68162.0,68161.0,0.009438]
[1718237276757,0.74662064,68162.0,68161.0,0.009438]
[1718237276925,0.74152089,68162.0,68161.0,0.009438]
[1718237277125,0.75122863,68162.0,68161.0,0.009438]
[1718237277326,0.82142863,68162.0,68161.0,0.009438]
[1718237277561,0.8075142,68162.0,68161.0,0.009438]
[1718237277781,0.74160646,68162.0,68161.0,0.009438]
[1718237277959,0.52470646,68162.0,68161.0,0.009438]
[1718237278196,0.71874597,68162.0,68161.0,0.009438]
[1718237278362,0.67480646,68162.0,68161.0,0.009438]
[1718237278822,0.76143783,68162.0,68161.0,0.009438]
[1718237284652,0.6840342,68162.0,68161.0,0.009438]
[1718237284852,0.7610966,68162.0,68161.0,0.009438]
[1718237285390,0.67527696,68162.0,68161.0,0.009438]
[1718237286052,0.58864559,68162.0,68161.0,0.009438]
[1718237288002,0.59295007,68162.0,68161.0,0.009438]
[1718237295279,0.60215007,68162.0,68161.0,0.009438]
[1718237295502,0.60215007,68162.0,68153.0,0.0089369]
[1718237295503,0.437,68161.0,68153.0,0.0089369]
[1718237295715,0.0702,68154.0,68153.0,0.0089369]
[1718237295923,0.62855342,68154.0,68153.0,0.0089369]
[1718237296141,0.80517805,68154.0,68153.0,0.0089369]
[1718237296365,0.90517805,68154.0,68153.0,0.0089369]
[1718237296584,1.00078173,68154.0,68153.0,0.0089369]
[1718237296812,1.11183082,68154.0,68153.0,0.0089369]
[1718237297261,0.2403,68153.0,68148.0,0.009438]
[1718237297481,0.2403,68153.0,68132.0,0.00018]
[1718237297482,0.2,68136.0,68132.0,0.00018]
[1718237297701,0.21451993,68133.0,68132.0,0.00018]
[1718237297925,0.82328424,68133.0,68132.0,0.00018]
[1718237298173,0.8339826,68133.0,68132.0,0.00018]
[1718237298404,1.01387775,68133.0,68132.0,0.00018]
[1718237298835,0.95617216,68133.0,68132.0,0.00018]
[1718237299051,0.95152126,68133.0,68132.0,0.00018]
[1718237299308,0.96552126,68133.0,68132.0,0.00018]
[1718237299981,1.08582262,68133.0,68132.0,0.00018]
[1718237300386,1.02656973,68133.0,68132.0,0.00018]
[1718237300826,1.01264551,68133.0,68132.0,0.00018]
[1718237301003,1.02664551,68133.0,68132.0,0.00018]
[1718237301620,1.01264551,68133.0,68132.0,0.00018]
[1718237301823,1.02664551,68133.0,68132.0,0.00018]
[1718237302621,1.01264551,68133.0,68132.0,0.00018]
[1718237302864,0.95630308,68133.0,68132.0,0.00018]
[1718237303073,0.75978475,68133.0,68132.0,0.00018]
[1718237303305,0.33678673,68133.0,68132.0,0.00018]
[1718237303519,0.32521829,68133.0,68132.0,0.00018]
[1718237303706,0.33921829,68133.0,68132.0,0.00018]
[1718237303877,0.35711668,68133.0,68132.0,0.00018]
[1718237304075,0.38156472,68133.0,68132.0,0.00018]
[1718237304323,0.38198843,68133.0,68132.0,0.00018]
[1718237304693,0.39598843,68133.0,68132.0,0.00018]
[1718237305221,0.38198843,68133.0,68132.0,0.00018]
[1718237305423,0.34627676,68133.0,68132.0,0.00018]
[1718237305625,0.17607676,68133.0,68132.0,0.00018]
[1718237306028,0.26027676,68133.0,68132.0,0.00018]
[1718237306243,0.17607676,68133.0,68132.0,0.00018]
[1718237306396,0.24627676,68133.0,68132.0,0.00018]
[1718237306612,0.26027676,68133.0,68132.0,0.00018]
[1718237306849,0.27230444,68133.0,68132.0,0.00018]
[1718237307078,0.26494658,68133.0,68132.0,0.00018]
[1718237307292,0.29294658,68133.0,68132.0,0.00018]
[1718237307709,0.22274658,68133.0,68132.0,0.00018]
[1718237307910,0.27894658,68133.0,68132.0,0.00018]
[1718237308131,0.29294658,68133.0,68132.0,0.00018]
[1718237309474,0.22274658,68133.0,68132.0,0.00018]
[1718237309629,0.29294658,68133.0,68132.0,0.00018]
[1718237309842,0.2669189,68133.0,68132.0,0.00018]
[1718237310067,0.1967189,68133.0,68132.0,0.35938]
[1718237310283,0.05239897,68133.0,68132.0,0.40938]
[1718237310736,0.03463476,68133.0,68132.0,0.40938]
[1718237311407,0.02063476,68133.0,68132.0,0.40938]
[1718237311798,0.03263476,68133.0,68132.0,0.40938]
[1718237312025,0.03263476,68133.0,68132.0,0.53958]
[1718237312643,0.01863476,68133.0,68132.0,0.53958]
[1718237313257,0.02063476,68133.0,68132.0,0.53958]
[1718237313898,0.10566685,68163.0,68157.0,0.02]
[1718237313899,0.02296685,68163.0,68157.0,0.02]
[1718237314126,0.43295979,68158.0,68157.0,0.3545]
[1718237314373,0.14431993,68158.0,68157.0,0.3545]
[1718237314622,0.16011537,68158.0,68157.0,0.3545]
[1718237315048,0.01579544,68158.0,68157.0,0.3545]
[1718237315254,0.01579544,68158.0,68157.0,0.4545]
[1718237315472,0.014,68163.0,68157.0,0.4545]
[1718237315473,0.014,68163.0,68162.0,0.12]
[1718237316120,0.014,68163.0,68161.0,0.07]
[1718237316317,0.014,68163.0,68162.0,0.12]
[1718237316537,0.014,68163.0,68161.0,0.05]
[1718237316538,0.00086,68167.0,68164.0,0.02]
[1718237316778,0.14431993,68166.0,68165.0,0.02]
[1718237316999,0.14431993,68166.0,68165.0,0.12]
[1718237317263,0.00086,68167.0,68166.0,0.17]
[1718237317480,0.00086,68167.0,68166.0,0.22]
[1718237317696,0.00086,68167.0,68166.0,0.4616]
[1718237318364,0.00986,68167.0,68166.0,0.4616]
[1718237318583,0.00086,68167.0,68166.0,0.4516]
[1718237319029,0.00486,68167.0,68166.0,0.4516]
[1718237319249,0.00486,68167.0,68166.0,0.1778]
[1718237319470,0.00486,68167.0,68166.0,0.1278]
[1718237319686,0.00486,68167.0,68166.0,0.05]
[1718237319901,0.00486,68167.0,68163.0,0.11]
[1718237320109,0.00486,68167.0,68166.0,0.05]
[1718237320323,0.00486,68167.0,68163.0,0.05]
[1718237320539,0.00486,68167.0,68160.0,0.11]
[1718237320540,0.01886,68167.0,68166.0,0.051]
[1718237320955,0.01886,68167.0,68166.0,0.05]
[1718237320956,0.00486,68167.0,68166.0,0.05]
[1718237321161,0.00086,68167.0,68166.0,0.17]
[1718237321379,0.00086,68167.0,68166.0,0.29215996]
[1718237321585,0.00086,68167.0,68166.0,0.45595996]
[1718237321809,0.00086,68167.0,68166.0,0.53545996]
[1718237322051,0.01086,68167.0,68166.0,0.53545996]
[1718237322427,0.01486,68167.0,68166.0,0.53545996]
[1718237323867,0.00486,68167.0,68166.0,0.53545996]
[1718237324032,0.00486,68167.0,68166.0,0.53645996]
[1718237324238,0.01886,68167.0,68166.0,0.53645996]
[1718237325287,0.01886,68167.0,68166.0,0.52645996]
[1718237331536,0.01886,68167.0,68166.0,0.101]
[1718237331772,0.03469224,68167.0,68166.0,0.101]
[1718237332520,0.03469224,68167.0,68166.0,0.221]
[1718237333817,0.03469224,68167.0,68166.0,0.101]
[1718237334226,0.03469224,68167.0,68166.0,0.001]
[1718237334445,0.03469224,68167.0,68166.0,0.051]
[1718237335503,0.03469224,68167.0,68166.0,0.001]
[1718237336849,0.19770739,68167.0,68166.0,0.001]
[1718237337920,0.17901217,68167.0,68166.0,0.001]
[1718237342290,0.03469224,68167.0,68166.0,0.001]
[1718237342519,0.01886,68167.0,68166.0,0.051]
[1718237343363,0.01886,68167.0,68166.0,0.001]
[1718237344203,0.17926,68167.0,68166.0,0.001]
[1718237344412,0.33937336,68167.0,68166.0,0.07315996]
[1718237344859,0.17897336,68167.0,68166.0,0.07315996]
[1718237346586,0.03465343,68167.0,68166.0,0.07315996]
[1718237350024,0.2774147,68167.0,68166.0,0.001]
[1718237350260,0.91465691,68167.0,68166.0,0.001]
[1718237350471,1.02107346,68167.0,68166.0,0.001]
[1718237351087,1.08867977,68167.0,68166.0,0.001]
[1718237351291,0.1551,68166.0,68154.0,0.07215996]
[1718237351496,0.55507869,68165.0,68154.0,0.12215996]
[1718237351722,0.30434221,68164.0,68154.0,0.12215996]
[1718237351928,0.25073648,68163.0,68154.0,0.12215996]
[1718237352138,0.25073648,68163.0,68155.0,0.05]
[1718237352139,0.38300771,68162.0,68155.0,0.05]
[1718237352346,0.14431993,68161.0,68155.0,0.05]
[1718237352783,0.00875408,68160.0,68155.0,0.05]
[1718237354812,0.02175408,68160.0,68155.0,0.05]
[1718237355306,0.02175408,68160.0,68157.0,0.12]
[1718237355452,0.02675408,68160.0,68155.0,0.05]
[1718237356083,0.02675408,68160.0,68155.0,0.17]
[1718237356260,0.01375408,68160.0,68156.0,0.12]
[1718237356463,0.01375408,68160.0,68157.0,0.12]
[1718237356664,0.01375408,68160.0,68157.0,0.001]
[1718237357073,0.01375408,68160.0,68157.0,0.121]
[1718237357267,0.00875408,68160.0,68157.0,0.12]
[1718237358196,0.00875408,68160.0,68156.0,0.001]
[1718237358197,0.00875408,68160.0,68158.0,0.12]
[1718237358824,0.01575408,68160.0,68159.0,0.01]
[1718237359092,0.00875408,68160.0,68159.0,0.17]
[1718237359535,0.009,68160.0,68159.0,0.17]
[1718237359736,0.022,68160.0,68159.0,0.05]
[1718237360097,0.029,68160.0,68159.0,0.05]
[1718237360309,0.00086,68167.0,68159.0,0.05]
[1718237360506,0.016636,68166.0,68165.0,0.07215996]
[1718237360704,0.00873462,68166.0,68165.0,0.07215996]
[1718237361107,0.00873462,68166.0,68165.0,0.47375996]
[1718237361333,0.00086,68167.0,68165.0,0.47375996]
[1718237361553,0.00086,68167.0,68166.0,0.12]
[1718237363625,0.00386,68167.0,68166.0,0.12]
[1718237363829,0.01586,68167.0,68166.0,0.121]
[1718237364259,0.01586,68167.0,68166.0,0.001]
[1718237364443,0.01586,68167.0,68166.0,0.121]
[1718237365943,0.01586,68167.0,68166.0,0.001]
[1718237374556,0.06951422,68167.0,68166.0,0.001]
[1718237374771,0.21383415,68167.0,68166.0,0.001]
[1718237375478,0.25954463,68167.0,68166.0,0.001]
[1718237376559,0.26135933,68167.0,68166.0,0.001]
[1718237379385,0.21602858,68167.0,68166.0,0.001]
[1718237380077,0.17115208,68167.0,68166.0,0.001]
[1718237381001,0.21610232,68167.0,68166.0,0.001]
[1718237381227,0.58030232,68167.0,68166.0,0.001]
[1718237381659,0.7416679,68167.0,68166.0,0.001]
[1718237381890,0.2273,68166.0,68147.0,0.12215996]
[1718237382102,0.1757,68159.0,68147.0,0.12215996]
[1718237382311,0.1757,68159.0,68154.0,0.07215996]
[1718237382312,0.14431993,68158.0,68154.0,0.07215996]
[1718237382517,0.15525738,68158.0,68154.0,0.07215996]
[1718237384679,0.1644,68157.0,68154.0,0.07215996]
[1718237384883,0.19385567,68156.0,68154.0,0.07215996]
[1718237385044,0.20479197,68156.0,68154.0,0.07215996]
[1718237386296,0.21879197,68156.0,68154.0,0.07215996]
[1718237387976,0.23279197,68156.0,68154.0,0.07215996]
[1718237388620,0.20479197,68156.0,68154.0,0.07215996]
[1718237388820,0.0544892,68155.0,68154.0,0.07215996]
[1718237388993,0.2097457,68155.0,68154.0,0.07215996]
[1718237390147,0.3052457,68155.0,68154.0,0.07215996]
[1718237390351,0.3056457,68155.0,68147.0,0.07215996]
[1718237390565,0.10683657,68155.0,68154.0,0.000946]
[1718237390849,0.15242132,68155.0,68154.0,0.000946]
[1718237391063,0.28253657,68155.0,68154.0,0.000946]
[1718237391479,0.4128565,68155.0,68154.0,0.000946]
[1718237391692,0.5029662,68155.0,68154.0,0.000946]
[1718237391906,0.54922927,68155.0,68154.0,0.000946]
[1718237392335,0.53522927,68155.0,68154.0,0.000946]
[1718237392552,0.5029662,68155.0,68154.0,0.000946]
[1718237392930,0.4889662,68155.0,68154.0,0.000946]
[1718237393132,0.4749662,68155.0,68154.0,0.000946]
[1718237393416,0.4889662,68155.0,68154.0,0.000946]
[1718237393633,0.5029662,68155.0,68154.0,0.000946]
[1718237393851,0.3272662,68155.0,68154.0,0.000946]
[1718237394069,0.2651565,68155.0,68154.0,0.000946]
[1718237394507,0.26633098,68155.0,68154.0,0.000946]
[1718237400361,0.31327865,68155.0,68154.0,0.000946]
[1718237400584,0.48897865,68155.0,68154.0,0.000946]
[1718237400795,0.44203098,68155.0,68154.0,0.000946]
[1718237401077,0.39906598,68155.0,68154.0,0.000946]
[1718237402286,0.445548,68155.0,68154.0,0.000946]
[1718237403921,0.606748,68155.0,68154.0,0.000946]
[1718237404628,0.536448,68155.0,68154.0,0.000946]
[1718237404831,0.474013,68155.0,68154.0,0.000946]
[1718237405046,0.544313,68155.0,68154.0,0.000946]
[1718237406686,0.392113,68155.0,68154.0,0.000946]
[1718237406896,0.301213,68155.0,68154.0,0.000946]
[1718237408854,0.31925858,68155.0,68154.0,0.000946]
[1718237409468,0.34524973,68155.0,68154.0,0.000946]
[1718237412076,0.36141043,68155.0,68154.0,0.000946]
[1718237412970,0.33541928,68155.0,68154.0,0.000946]
[1718237414693,0.56501928,68155.0,68154.0,0.000946]
[1718237415108,0.63869286,68155.0,68154.0,0.000946]
[1718237418152,0.68255352,68155.0,68154.0,0.000946]
[1718237419420,0.63869286,68155.0,68154.0,0.000946]
[1718237419719,0.73155102,68155.0,68154.0,0.000946]
[1718237420363,0.79734201,68155.0,68154.0,0.000946]
[1718237420800,0.94227234,68155.0,68154.0,0.000946]
[1718237421018,0.986133,68155.0,68154.0,0.00089339]
[1718237421501,0.85455102,68155.0,68154.0,0.00089339]
[1718237421711,0.84055102,68155.0,68154.0,0.00089339]
[1718237421934,0.2355,68154.0,68143.0,0.00017665]
[1718237422142,0.2262,68144.0,68143.0,0.00017665]
[1718237422356,0.43316265,68144.0,68143.0,0.00017665]
[1718237422596,0.45616265,68144.0,68143.0,0.00017665]
[1718237423667,0.4573174,68144.0,68143.0,0.00017665]
[1718237424204,0.52198001,68144.0,68143.0,0.00017665]
[1718237424686,0.53598001,68144.0,68143.0,0.00017665]
[1718237424894,0.65352435,68144.0,68143.0,0.00017665]
[1718237425080,0.60964086,68144.0,68143.0,0.00017665]
[1718237425357,0.66251405,68144.0,68143.0,0.00017665]
[1718237425578,0.61864086,68144.0,68143.0,0.00017665]
[1718237426019,0.63192367,68144.0,68143.0,0.00017665]
[1718237426690,0.60892367,68144.0,68143.0,0.00017665]
[1718237427108,0.73692367,68144.0,68143.0,0.00017665]
[1718237427535,0.79802367,68144.0,68143.0,0.00017665]
[1718237428051,0.81202367,68144.0,68143.0,0.00017665]
[1718237428323,0.79802367,68144.0,68143.0,0.00017665]
[1718237428821,0.81202367,68144.0,68143.0,0.00017665]
[1718237429504,0.79586297,68144.0,68143.0,0.00017665]
[1718237429733,0.8121271,68144.0,68143.0,0.00017665]
[1718237430172,0.1656,68142.0,68135.0,0.07215996]
[1718237430401,0.0703,68136.0,68135.0,0.07215996]
[1718237430623,0.30036605,68136.0,68135.0,0.07215996]
[1718237430837,0.31362358,68136.0,68135.0,0.07215996]
[1718237432434,0.32762358,68136.0,68135.0,0.07215996]
[1718237432669,0.37134679,68136.0,68135.0,0.07215996]
[1718237433294,0.38534679,68136.0,68135.0,0.07215996]
[1718237434619,0.33886477,68136.0,68135.0,0.07215996]
[1718237439279,0.29514156,68136.0,68135.0,0.07215996]
[1718237440315,0.27214156,68136.0,68135.0,0.07215996]
[1718237440525,0.27228322,68136.0,68135.0,0.07215996]
[1718237440982,0.25587746,68136.0,68135.0,0.07215996]
[1718237441203,0.27227366,68136.0,68135.0,0.07215996]
[1718237441438,0.32312564,68136.0,68135.0,0.07215996]
[1718237442318,0.32313202,68136.0,68135.0,0.07215996]
[1718237444473,0.37094707,68136.0,68135.0,0.07215996]
[1718237445418,0.35454449,68136.0,68135.0,0.07215996]
[1718237445617,0.37095131,68136.0,68135.0,0.07215996]
[1718237446419,0.3531995,68136.0,68135.0,0.07215996]
[1718237448249,0.35309862,68136.0,68135.0,0.07215996]
[1718237449291,0.59189862,68136.0,68135.0,0.07215996]
[1718237449899,0.53258054,68136.0,68135.0,0.07215996]
[1718237450811,0.53185994,68136.0,68135.0,0.07215996]
[1718237451244,0.37035994,68136.0,68135.0,0.07215996]
[1718237451906,0.36972277,68136.0,68135.0,0.07215996]
[1718237454046,0.36972277,68136.0,68133.0,0.000946]
[1718237454277,0.077,68134.0,68133.0,0.000946]
[1718237454564,0.077,68134.0,68131.0,0.009438]
[1718237454565,0.1509,68133.0,68131.0,0.009438]
[1718237454778,0.34750454,68132.0,68131.0,0.009438]
[1718237454984,0.35988,68132.0,68131.0,0.009438]
[1718237455237,0.4602633,68132.0,68131.0,0.009438]
[1718237456955,0.5305633,68132.0,68131.0,0.009438]
[1718237457168,0.48675153,68132.0,68131.0,0.009438]
[1718237457372,0.40036823,68132.0,68131.0,0.009438]
[1718237457588,0.32674514,68132.0,68131.0,0.009438]
[1718237457807,0.34074514,68132.0,68131.0,0.009438]
[1718237458460,0.4143634,68132.0,68131.0,0.009438]
[1718237458689,0.4003634,68132.0,68131.0,0.009438]
[1718237458929,0.49763844,68132.0,68131.0,0.009438]
[1718237459390,0.48363844,68132.0,68131.0,0.009438]
[1718237459824,0.49763844,68132.0,68131.0,0.009438]
[1718237460245,0.54563844,68132.0,68131.0,0.00918653]
[1718237460467,0.73373844,68132.0,68131.0,0.00918653]
[1718237461138,0.73198844,68132.0,68131.0,0.00918653]
[1718237461358,0.80562449,68132.0,68131.0,0.00918653]
[1718237461575,0.80562449,68132.0,68131.0,0.00180311]
[1718237461812,0.79162449,68132.0,68131.0,0.00180311]
[1718237462029,0.70398844,68132.0,68131.0,0.00180311]
[1718237462322,0.80562449,68132.0,68131.0,0.00180311]
[1718237462745,0.81962449,68132.0,68131.0,0.00180311]
[1718237463184,0.80562449,68132.0,68131.0,0.00180311]
[1718237463628,0.80562449,68132.0,68130.0,0.009438]
[1718237463851,0.23428097,68131.0,68130.0,0.009438]
[1718237464073,0.4016009,68131.0,68130.0,0.009438]
[1718237464289,0.51393232,68131.0,68130.0,0.009438]
[1718237464514,0.75073232,68131.0,68130.0,0.009438]
[1718237464739,0.86027738,68131.0,68130.0,0.009438]
[1718237465165,0.87427738,68131.0,68130.0,0.009438]
[1718237465595,0.86027738,68131.0,68130.0,0.009438]
[1718237466238,0.75073232,68131.0,68130.0,0.009438]
[1718237466451,0.86040337,68131.0,68130.0,0.009438]
[1718237466865,0.88840337,68131.0,68130.0,0.009438]
[1718237467360,0.87440337,68131.0,68130.0,0.009438]
[1718237467766,0.88840337,68131.0,68130.0,0.009438]
[1718237468226,0.88840672,68131.0,68130.0,0.009438]
[1718237470239,0.77873567,68131.0,68130.0,0.009438]
[1718237470476,0.88840358,68131.0,68130.0,0.009438]
[1718237471148,0.65160358,68131.0,68130.0,0.009438]
[1718237474415,0.54193567,68131.0,68130.0,0.009438]
[1718237474860,0.78113567,68131.0,68130.0,0.009438]
[1718237476133,0.7990171,68131.0,68130.0,0.009438]
[1718237476555,0.79900235,68131.0,68130.0,0.009438]
[1718237480567,0.7998006,68131.0,68130.0,0.009438]
[1718237482014,0.736264,68131.0,68130.0,0.009438]
[1718237482214,0.79966329,68131.0,68130.0,0.009438]
[1718237482344,0.75264391,68131.0,68124.0,0.009438]
[1718237482547,0.75264391,68131.0,68109.0,0.009438]
[1718237482548,0.14431993,68126.0,68109.0,0.009438]
[1718237482747,0.0703,68110.0,68109.0,0.009438]
[1718237482954,0.21461993,68110.0,68109.0,0.009438]
[1718237483157,0.29030799,68110.0,68109.0,0.009438]
[1718237483973,0.31330799,68110.0,68109.0,0.009438]
[1718237484357,0.37961738,68110.0,68109.0,0.009438]
[1718237484567,0.49700479,68110.0,68109.0,0.009438]
[1718237484985,0.51892968,68110.0,68109.0,0.009438]
[1718237485395,0.4969633,68110.0,68109.0,0.009438]
[1718237485597,0.5189633,68110.0,68109.0,0.009438]
[1718237485999,0.5109633,68110.0,68109.0,0.009438]
[1718237486440,0.43740639,68110.0,68109.0,0.009438]
[1718237486653,0.45316669,68110.0,68109.0,0.009438]
[1718237486860,0.3868573,68110.0,68109.0,0.009438]
[1718237487059,0.4008573,68110.0,68109.0,0.009438]
[1718237487485,0.44462233,68110.0,68109.0,0.009438]
[1718237487692,0.45862233,68110.0,68109.0,0.009438]
[1718237488140,0.44462233,68110.0,68109.0,0.009438]